Cogmind - Beta 12 X6 @@@ ROGUE MODE // 2023.02.21 @ 02:50:19 Player: maxwell Result: Self-destructed Performance ------------- Evolutions (4) 2000 Regions Visited (11) 2200 Robots Destroyed (108) 540 Value Destroyed (3893) 3893 Prototype IDs (2) 40 Alien Tech Used (0) 0 Bonus (-748) -748 TOTAL SCORE: 7925 Bonus ------- Follower Combat Kills 455 Met Imprinter 300 Was Imprinted 300 Friendly Fire -1803 Cogmind --------- Core Integrity 173/850 Matter 290/300 Energy 33/100 System Corruption 12% Temperature Cool (48) Movement Core (1550) Ox30 Location -6/Lower Caves Parts ------- > --- POWER (1) -------- (None) > --- PROPULSION (6) --- (None) > --- UTILITY (5) ------ Huge Storage Unit Advanced Terrain Scan Processor > --- WEAPON (3) ------- Heavy Plasma Cannon Powered Hammer > --- INVENTORY (25) --- Coolant Injector Large Storage Unit Advanced Trap Scanner Advanced Melee Analysis Suite Experimental Utility Shielding Experimental Utility Shielding Experimental Utility Shielding Zionite Heavy Carapace Hardened Medium Armor Plating Improved Light Armor Plating Improved Medium Armor Plating Improved Shield Generator Carbide Saw CR-A16's Pointy Stick Peak State ------------ > --- POWER ------------ Light Angular Momentum Engine > --- PROPULSION ------- Carbon-fiber Leg Carbon-fiber Leg Flexi-carbon Leg Flexi-carbon Leg Flexi-carbon Leg Myomer Leg > --- UTILITY ---------- Huge Storage Unit Enhanced Optical Array Improved Signal Interpreter Advanced Melee Analysis Suite Experimental Utility Shielding > --- WEAPON ----------- Chainsword Chainsword Chainsword > --- INVENTORY -------- Carbon-fiber Leg Carbon-fiber Leg Carbon-fiber Leg Coolant Injector Large Storage Unit Improved Terrain Scanner Advanced Terrain Scan Processor Experimental Utility Shielding Experimental Utility Shielding Experimental Utility Shielding Zionite Heavy Carapace Hardened Medium Armor Plating Hardened Medium Armor Plating Hardened Medium Armor Plating Hardened Medium Armor Plating Improved Light Armor Plating Improved Medium Armor Plating Insulated Plating Heavy Plasma Cannon Minigun Carbide Saw CR-A16's Pointy Stick [Rating: 74] Favorites ----------- Power Improved Deuterium Engine Engine Improved Deuterium Engine Power Core Light Nuclear Core Propulsion Advanced Treads Treads Advanced Treads Leg Carbon-fiber Leg Utility Huge Storage Unit Device Improved Sensor Array Storage Huge Storage Unit Processor Improved Signal Interpreter Protection Makeshift Armor Plating Weapon Chainsword Energy Cannon Beam Cannon Ballistic Gun Light Assault Rifle Launcher Improved Grenade Launcher Impact Weapon Powered Hammer Slashing Weapon Chainsword Piercing Weapon CR-A16's Pointy Stick Build | -11 -10 -9 -9 -8 -7 -7 -7 -7 -6 -6 -6 ------- Run | Jun Mat Mat Min Mat Fac Low Low Zio Pro Fac Low Slots Evolved 8 | . . 2 . 2 2 . . . . 2 . Power . | . . . . . . . . . . . . Propulsion 4 | . . 1 . 1 . . . . . 2 . Utility 3 | . . . . 1 2 . . . . . . Weapon 1 | . . 1 . . . . . . . . . Parts Attached 141 | 5 9 17 . 5 9 25 13 . 4 36 18 Power 13 | 1 1 2 . . 1 2 2 . . 3 1 Engine 11 | 1 1 1 . . 1 2 1 . . 3 1 Core 2 | . . 1 . . . . 1 . . . . Reactor . | . . . . . . . . . . . . Propulsion 47 | 2 2 5 . 2 2 6 4 . 1 19 4 Treads 24 | 2 2 5 . 2 2 6 4 . 1 . . Leg 23 | . . . . . . . . . . 19 4 Wheel . | . . . . . . . . . . . . Hover . | . . . . . . . . . . . . Flight . | . . . . . . . . . . . . Utility 49 | 1 3 5 . 1 4 8 5 . . 13 9 Device 14 | . . 1 . 1 1 4 2 . . 2 3 Storage 5 | 1 2 2 . . . . . . . . . Processor 9 | . . . . . 2 1 . . . 6 . Hackware . | . . . . . . . . . . . . Protection 21 | . 1 2 . . 1 3 3 . . 5 6 Artifact . | . . . . . . . . . . . . Weapon 32 | 1 3 5 . 2 2 9 2 . 3 1 4 Energy Gun . | . . . . . . . . . . . . Energy Cannon 2 | . 1 . . . . . . . . . 1 Ballistic Gun 12 | 1 2 5 . 2 1 1 . . . . . Ballistic Cannon . | . . . . . . . . . . . . Launcher 5 | . . . . . . 2 2 . 1 . . Special Weapon . | . . . . . . . . . . . . Impact Weapon 1 | . . . . . . . . . . . 1 Slashing Weapon 11 | . . . . . 1 6 . . 2 1 1 Piercing Weapon 1 | . . . . . . . . . . . 1 Special Melee Weapon . | . . . . . . . . . . . . Unidentified Prototypes 2 | . . . . . . . . . . 2 . Parts Lost 61 | . 3 6 . . . 11 7 . 2 12 20 Power 8 | . 1 . . . . 2 1 . . 2 2 Propulsion 28 | . 1 2 . . . 6 3 . . 7 9 Utility 15 | . . 2 . . . 2 2 . 1 2 6 Weapon 10 | . 1 2 . . . 1 1 . 1 1 3 Highest Loss Streak 14 | . 2 4 . . . 4 4 . 2 5 14 To Critical Strikes 1 | . . . . . . . . . . . 1 Average Slot Usage (%) 96 | . 84 94 100 100 100 98 94 100 98 98 87 Engine 6 | . 13 6 . . 5 6 4 7 7 5 5 Core 1 | . . 1 11 9 1 . 2 . . . . Treads 22 | . 27 32 33 36 30 29 26 30 30 . . Leg 8 | . . . . . . . . . . 39 30 Device 4 | . . . . 9 7 6 6 7 5 1 4 Storage 8 | . 14 17 11 9 7 7 7 7 7 6 6 Processor 12 | . . . . . 12 15 15 15 15 17 18 Protection 6 | . 10 3 11 9 9 7 6 7 7 5 1 Ballistic Gun 6 | . 15 32 33 27 19 3 . . . . . Launcher 1 | . . . . . . . 4 7 5 . . Slashing Weapon 13 | . . . . . 2 19 17 15 17 20 18 Naked Turns . | . . . . . . . . . . . . Heaviest Build 110 | 12 30 110 94 100 109 107 108 107 107 107 109 Greatest Support 117 | 40 40 66 66 86 86 90 90 82 82 117 95 Greatest Overweight (x) 2 | . . 1 1 1 1 1 1 1 1 1 2 Average Overweight (x) . | . . 1 1 1 1 1 1 1 1 . 1 Largest Inventory Capacity 25 | 8 15 25 25 25 25 25 25 25 25 25 25 Average Capacity 23 | 7 9 24 25 25 25 25 25 25 25 25 25 Most Carried 25 | . 10 24 24 25 25 24 25 25 25 25 24 Average Carried 20 | . 3 17 24 23 23 21 21 25 24 20 20 Final Capacity 25 | 8 15 25 25 25 25 25 25 25 25 25 25 Final Carried 25 | . 9 24 24 25 24 19 25 25 24 24 15 Class Distribution -------------------- 53% | Scavenger-Mutant 28% | Mutant 9% | Tank 5% | Gunner Dominant Class ---------------- Mutant | -10/Materials Gunner | -9/Materials Tank | -9/Mines Tank | -8/Materials Tank | -7/Factory Mutant | -7/Lower Caves Mutant | -7/Lower Caves Scavenger-Mutant | -7/Zion Scavenger-Mutant | -6/Proximity Caves Scavenger-Mutant | -6/Factory Scavenger-Mutant | -6/Lower Caves Resources | -11 -10 -9 -9 -8 -7 -7 -7 -7 -6 -6 -6 ----------- Run | Jun Mat Mat Min Mat Fac Low Low Zio Pro Fac Low Matter Collected 2184 | 250 158 306 . 132 61 449 214 . 61 361 192 Remotely . | . . . . . . . . . . . . Salvage Created 4790 | . 329 756 . 206 107 725 826 . 249 1074 518 Parts 244 | . 17 43 . 11 11 26 46 . 10 57 23 Haulers Intercepted 4 | . 1 1 . 1 . . . . . 1 . Recyclers Shooed 2 | . . 1 . . . . . . . 1 . Parts Field Recycled . | . . . . . . . . . . . . Retrieved Matter . | . . . . . . . . . . . . Parts Self-Destructed 82 | . . . . . . 18 19 . 20 . 25 Prevented 2 | . . . . . . . . . 2 . . Kills | -11 -10 -9 -9 -8 -7 -7 -7 -7 -6 -6 -6 ------- Run | Jun Mat Mat Min Mat Fac Low Low Zio Pro Fac Low Combat Hostiles Destroyed 89 | . 7 13 . 3 2 16 12 . 7 17 12 Melee 45 | . . . . . . 9 4 . 4 17 11 Guns 24 | . 5 13 . 3 2 1 . . . . . Cannons 3 | . 2 . . . . . . . . . 1 AOE 17 | . . . . . . 6 8 . 3 . . Classes Destroyed 15 | . 4 5 . . 1 3 1 . . 1 . Tunneler 1 | . . 1 . . . . . . . . . Hauler 4 | . 1 1 . 1 . . . . . 1 . Recycler 2 | . . 1 . . . . . . . 1 . Operator 1 | . 1 . . . . . . . . . . Watcher 3 | . . 2 . 1 . . . . . . . Swarmer 20 | . 2 . . . . 3 4 . 3 1 7 Cutter 3 | . . . . . . . . . . 3 . Grunt 38 | . 5 7 . 2 . 9 6 . 3 4 2 Brawler 1 | . . . . . . . . . . . 1 Duelist 4 | . . 2 . . . . 1 . 1 . . Sentry 12 | . . 4 . 1 1 1 . . . 4 1 Hunter 4 | . . . . . . 1 1 . . 2 . Programmer 6 | . . . . . 1 1 . . . 3 1 Samaritan 4 | . . . . . . 3 . . . . 1 Thug 1 | . . . . . . . 1 . . . . Savage 2 | . . . . . . . 2 . . . . Butcher 1 | . . . . . . . 1 . . . . Guerrilla 1 | . . . . . . . 1 . . . . Mutant 3 | . . . . . . 1 2 . . . . Commander 1 | . . . . . . . 1 . . . . Best Kill Streak 4 | . 2 4 . 3 1 4 4 . 4 4 3 Combat Bots Only 4 | . 2 4 . 3 1 4 4 . 4 3 3 Max Kills in Single Turn 3 | . 1 2 . 1 1 3 3 . 2 1 1 Gunslinging 1 | . . 1 . . . . . . . . . Exploded 3 | . . . . . . 3 3 . 2 . . Melee 1 | . . . . . . 1 1 . 1 1 1 Uniques/NPCs Destroyed . | . . . . . . . . . . . . Combat | -11 -10 -9 -9 -8 -7 -7 -7 -7 -6 -6 -6 -------- Run | Jun Mat Mat Min Mat Fac Low Low Zio Pro Fac Low Damage Taken 9644 | . 721 1016 . 176 81 1843 696 . 549 2456 2106 Core 1127 | . 114 152 . 9 . 90 36 . 49 271 406 Absorbed by Shields 131 | . . . . 67 8 56 . . . . . Redirected to Shielding 59 | . . 59 . . . . . . . . . Core Remaining (%) 77 | 100 54 . 62 98 . . . . 75 . . Volleys Fired 143 | . 42 55 . 17 5 11 8 . 2 . 3 Largest 3 | . 2 3 . 3 3 3 1 . 1 . 1 Hottest 90 | . 80 63 . 66 71 71 36 . 36 . 90 Shots Fired 317 | . 56 161 . 51 15 21 8 . 2 . 3 Gun 284 | . 42 161 . 51 15 15 . . . . . Cannon 17 | . 14 . . . . . . . . . 3 Launcher 16 | . . . . . . 6 8 . 2 . . Special . | . . . . . . . . . . . . Kinetic 284 | . 42 161 . 51 15 15 . . . . . Thermal 17 | . 14 . . . . . . . . . 3 Explosive 16 | . . . . . . 6 8 . 2 . . Electromagnetic . | . . . . . . . . . . . . Robot Hit Streak 23 | . 23 11 . 16 7 4 3 . 5 . 8 Robot Miss Streak 4 | . 2 3 . 4 4 1 . . . . . Penetration Max . | . . . . . . . . . . . . Secondary Targets 7 | . . 6 . 1 . . . . . . . Max Gunslinging Chain 1 | . . 1 . 1 . . . . . . . Shots Hit Robots 401 | . 43 121 . 36 9 41 31 . 10 72 38 Core Hits 194 | . 16 48 . 12 5 30 29 . 9 29 16 Critical Kills . | . . . . . . . . . . . . Critical Parts Destroyed 3 | . . . . . . . . . . . 3 Critical Strikes 21 | . . 1 . . . 3 2 . . 9 6 Destroy 1 | . . 1 . . . . . . . . . Smash 4 | . . . . . . . . . . . 4 Sever 16 | . . . . . . 3 2 . . 9 2 Melee Attacks 268 | . . . . . 3 51 32 4 14 112 52 Impact 21 | . . . . . . . . . . . 21 Slashing 243 | . . . . . 3 51 32 4 14 112 27 Piercing 4 | . . . . . . . . . . . 4 Sneak Attacks 22 | . . . . . . 3 15 . . 3 1 Combat Hostiles . | . . . . . . . . . . . . Follow-up Attacks 42 | . . . . . . 8 5 . 5 21 3 Damage Inflicted 10889 | . 563 1086 . 345 178 1927 2187 . 535 2812 1256 Guns 2082 | . 338 1034 . 345 178 187 . . . . . Cannons 313 | . 219 . . . . . . . . . 94 Explosions 1705 | . . . . . . 699 756 . 250 . . Melee 6731 | . . . . . . 1041 1431 . 285 2812 1162 Ramming 58 | . 6 52 . . . . . . . . . Kinetic 2082 | . 338 1034 . 345 178 187 . . . . . Thermal 313 | . 219 . . . . . . . . . 94 Explosive 1705 | . . . . . . 699 756 . 250 . . Electromagnetic . | . . . . . . . . . . . . Impact 580 | . . . . . . . . . . . 580 Slashing 6085 | . . . . . . 1041 1431 . 285 2812 516 Piercing 66 | . . . . . . . . . . . 66 Highest Corruption 12 | . 1 1 1 . . . . . . 9 12 Average Corruption 5 | . 1 1 1 . . . . . . 8 9 Corruption Purged . | . . . . . . . . . . . . Corruption Blocked . | . . . . . . . . . . . . Effects 71 | . 4 6 2 . . . . . . 32 27 Message Errors 26 | . 3 2 1 . . . . . . 9 11 Matter Fused 14 | . . 2 . . . . . . . 7 5 Heat Flow Errors 6 | . . . . . . . . . . 5 1 Energy Discharges 8 | . . 1 . . . . . . . 4 3 Data Loss (minor) 9 | . . 1 1 . . . . . . 2 5 Data Loss (major) 4 | . . . . . . . . . . 3 1 Alerts 3 | . . . . . . . . . . 2 1 Weapon Failures 1 | . 1 . . . . . . . . . . Overload Shots . | . . . . . . . . . . . . Overflow Damage 383 | . . 7 . . . 141 9 . . 101 125 Projectiles . | . . . . . . . . . . . . Explosions 56 | . . . . . . 53 3 . . . . Melee 327 | . . 7 . . . 88 6 . . 101 125 Knockbacks 1 | . . . . . . . . . . . 1 Impact 1 | . . . . . . . . . . . 1 Kinetic . | . . . . . . . . . . . . Secondary . | . . . . . . . . . . . . Self-Inflicted Damage 102 | . . . . . . 77 25 . . . . Shots 3 | . . . . . . 2 1 . . . . Rammed 8 | . 2 6 . . . . . . . . . Targets Rammed 9 | . 2 7 . . . . . . . . . Kicked . | . . . . . . . . . . . . Crushed 1 | . . 1 . . . . . . . . . Highest Temperature 314 | . 314 51 . 45 12 159 56 . . 263 213 Average Temperature 52 | . 88 10 . 21 6 79 27 . . 103 71 Received Heat Transfer 1896 | . 345 264 . 60 . 471 144 . . 378 234 Siege Activations . | . . . . . . . . . . . . Robots Corrupted . | . . . . . . . . . . . . Combat Hostiles . | . . . . . . . . . . . . Parts Fried . | . . . . . . . . . . . . Impact Corruptions 5 | . . 1 . . . . . . . . 4 Robots Melted . | . . . . . . . . . . . . Combat Hostiles . | . . . . . . . . . . . . Parts Melted 1 | . 1 . . . . . . . . . . Heat Transferred 594 | . 444 . . . . . . . . . 150 Parts Sabotaged . | . . . . . . . . . . . . Parts Stolen . | . . . . . . . . . . . . Parts Stripped . | . . . . . . . . . . . . Power Chain Reactions . | . . . . . . . . . . . . Missiles Intercepted . | . . . . . . . . . . . . Alert | -11 -10 -9 -9 -8 -7 -7 -7 -7 -6 -6 -6 ------- Run | Jun Mat Mat Min Mat Fac Low Low Zio Pro Fac Low Peak Influence 397 | . 167 294 31 80 84 . . . . 397 . Initial 36 | . . 29 31 11 36 . . . . . . Average 114 | . 61 120 31 42 53 . . . . 185 . Maximum Alert Level 1 | . . 1 . . . . . . . 1 . Low Security (%) 78 | 100 100 80 100 100 100 . . . . 51 . Level 1 21 | . . 19 . . . . . . . 48 . Level 2 . | . . . . . . . . . . . . Level 3 . | . . . . . . . . . . . . Level 4 . | . . . . . . . . . . . . Level 5 . | . . . . . . . . . . . . High Security . | . . . . . . . . . . . . Max Security . | . . . . . . . . . . . . Squads Dispatched 13 | . 1 1 . 2 1 . . . . 8 . Investigation 1 | . . 1 . . . . . . . . . Extermination 3 | . . . . . . . . . . 3 . Reinforcement 5 | . 1 . . 1 1 . . . . 2 . Assault . | . . . . . . . . . . . . Garrison 4 | . . . . 1 . . . . . 3 . Intercept . | . . . . . . . . . . . . Searches Triggered . | . . . . . . . . . . . . Construction Impeded . | . . . . . . . . . . . . Haulers Reinforced . | . . . . . . . . . . . . Active Scanning Responses . | . . . . . . . . . . . . Cargo Convoy Interrupts . | . . . . . . . . . . . . Stealth | -11 -10 -9 -9 -8 -7 -7 -7 -7 -6 -6 -6 --------- Run | Jun Mat Mat Min Mat Fac Low Low Zio Pro Fac Low Distress Signals 4 | . 1 2 . 1 . . . . . . . Communications Jammed . | . . . . . . . . . . . . Distress Signals . | . . . . . . . . . . . . Times Spotted 140 | . 23 19 . 7 3 19 12 . 11 30 16 Peak Tracking Total 9 | . 4 8 . 2 1 5 4 . 4 6 9 Tactical Retreats 5 | . 1 . . . . 1 . . . 3 . Traps | -11 -10 -9 -9 -8 -7 -7 -7 -7 -6 -6 -6 ------- Run | Jun Mat Mat Min Mat Fac Low Low Zio Pro Fac Low Traps Triggered 7 | . 2 2 . 1 . . . . . 2 . Indirectly . | . . . . . . . . . . . . Trap Hack Attempts . | . . . . . . . . . . . . Triggered . | . . . . . . . . . . . . Disarmed . | . . . . . . . . . . . . Reprogrammed . | . . . . . . . . . . . . Reused . | . . . . . . . . . . . . Traps Extracted . | . . . . . . . . . . . . Installed . | . . . . . . . . . . . . Triggered 3 | . . . . . . . . . 3 . . Machines | -11 -10 -9 -9 -8 -7 -7 -7 -7 -6 -6 -6 ---------- Run | Jun Mat Mat Min Mat Fac Low Low Zio Pro Fac Low Machines Disabled 1 | . . . . . . 1 . . . . . Max in Single Turn 1 | . . . . . . 1 . . . . . Garrison Access 1 | . . . . . . . . . . 1 . Machines Repaired . | . . . . . . . . . . . . Machines Sabotaged . | . . . . . . . . . . . . Overloaded Fab Kills . | . . . . . . . . . . . . Hacking | -11 -10 -9 -9 -8 -7 -7 -7 -7 -6 -6 -6 --------- Run | Jun Mat Mat Min Mat Fac Low Low Zio Pro Fac Low Machines Accessed 9 | . 1 1 . 4 . . 1 . . 2 . Terminals 6 | . 1 1 . 4 . . . . . . . Fabricators . | . . . . . . . . . . . . Repair Stations 1 | . . . . . . . . . . 1 . Recycling Units . | . . . . . . . . . . . . Scanalyzers . | . . . . . . . . . . . . Garrison Access 1 | . . . . . . . . . . 1 . Total Hacks 19 | . 3 2 . 9 . . 1 . . 4 . Successful 7 | . 1 1 . 2 . . 1 . . 2 . Failed 11 | . 1 1 . 7 . . . . . 2 . Catastrophic 3 | . . . . 2 . . . . . 1 . Database Lockouts 1 | . 1 . . . . . . . . . . Manual 30 | . 3 3 . 9 . . . . . 15 . Terminals 14 | . 3 2 . 9 . . . . . . . Fabricators . | . . . . . . . . . . . . Repair Stations 2 | . . . . . . . . . . 2 . Recycling Units . | . . . . . . . . . . . . Scanalyzers . | . . . . . . . . . . . . Garrison Access 2 | . . . . . . . . . . 2 . Terminal Hacks 4 | . 1 1 . 1 . . 1 . . . . Robot Analysis 2 | . 1 1 . . . . . . . . . Open Door 1 | . . . . . . . 1 . . . . Terminal Index 1 | . . . . 1 . . . . . . . Fabricator Hacks . | . . . . . . . . . . . . Repair Station Hacks 1 | . . . . . . . . . . 1 . Scan Component 1 | . . . . . . . . . . 1 . Recycling Unit Hacks . | . . . . . . . . . . . . Scanalyzer . | . . . . . . . . . . . . Garrison Access Hacks 1 | . . . . . . . . . . 1 . Seal Access 1 | . . . . . . . . . . 1 . Unauthorized Hacks 1 | . . . . 1 . . . . . . . Terminals 1 | . . . . 1 . . . . . . . Operators 1 | . . . . 1 . . . . . . . Fabricators . | . . . . . . . . . . . . Repair Stations . | . . . . . . . . . . . . Recycling Units . | . . . . . . . . . . . . Scanalyzers . | . . . . . . . . . . . . Garrison Access . | . . . . . . . . . . . . Data Cores Recovered 1 | . 1 . . . . . . . . . . Used . | . . . . . . . . . . . . Hacking Detections 8 | . 1 1 . 4 . . . . . 2 . Full Trace Events 1 | . . . . 1 . . . . . . . Feedback Events . | . . . . . . . . . . . . Feedback Blocked . | . . . . . . . . . . . . Robot Schematics Acquired . | . . . . . . . . . . . . Robots Built . | . . . . . . . . . . . . Authchips . | . . . . . . . . . . . . Time . | . . . . . . . . . . . . Total Robot Build Rating . | . . . . . . . . . . . . Part Schematics Acquired . | . . . . . . . . . . . . Parts Built . | . . . . . . . . . . . . Authchips . | . . . . . . . . . . . . Time . | . . . . . . . . . . . . Total Part Build Rating . | . . . . . . . . . . . . Parts Repaired . | . . . . . . . . . . . . Time . | . . . . . . . . . . . . Parts Recycled . | . . . . . . . . . . . . Recycled Matter . | . . . . . . . . . . . . Retrieved Matter . | . . . . . . . . . . . . Retrieved Components . | . . . . . . . . . . . . Parts Scanalyzed . | . . . . . . . . . . . . Part Schematics Acquired . | . . . . . . . . . . . . Parts Damaged . | . . . . . . . . . . . . Bothacking | -11 -10 -9 -9 -8 -7 -7 -7 -7 -6 -6 -6 ------------ Run | Jun Mat Mat Min Mat Fac Low Low Zio Pro Fac Low Used RIF Installer . | . . . . . . . . . . . . Robots Hacked . | . . . . . . . . . . . . Non-combat . | . . . . . . . . . . . . Combat . | . . . . . . . . . . . . Robot Hacks Applied . | . . . . . . . . . . . . Relay Couplers Released 4 | . . . . . . . . . . 4 . Programmers 4 | . . . . . . . . . . 4 . Fabnet Peak Effective % . | . . . . . . . . . . . . Robots Rewired . | . . . . . . . . . . . . Allies Hacked . | . . . . . . . . . . . . Hacks Repelled . | . . . . . . . . . . . . Allies | -11 -10 -9 -9 -8 -7 -7 -7 -7 -6 -6 -6 -------- Run | Jun Mat Mat Min Mat Fac Low Low Zio Pro Fac Low Total Allies 12 | . . . . . . . . 7 . 5 . Largest Group 7 | . . . . . . . . 7 7 5 . Highest-Rated Group 380 | . . . . . . . . 223 223 380 . Highest-Rated Ally 85 | . . . . . . . . 38 38 85 . Zionite Dispatches 2 | . . . . . . . . . . 2 . Heavy 1 | . . . . . . . . . . 1 . Light 1 | . . . . . . . . . . 1 . Total Orders . | . . . . . . . . . . . . Ally Attacks 81 | . . . . . . . . . 37 44 . Total Damage 1746 | . . . . . . . . . 708 1038 . Kills 18 | . . . . . . . . . 7 11 . Allies Corrupted 2 | . . . . . . . . . . 2 . Allies Melted . | . . . . . . . . . . . . Intel | -11 -10 -9 -9 -8 -7 -7 -7 -7 -6 -6 -6 ------- Run | Jun Mat Mat Min Mat Fac Low Low Zio Pro Fac Low Robot Analysis Total 2 | . 1 1 . . . . . . . . . Derelict Logs Recovered 5 | . . . . . . 2 . 2 1 . . Drone Launches . | . . . . . . . . . . . . Drone Recoveries . | . . . . . . . . . . . . Zionite Intel Received 2 | . . . . . . . . . . 2 . Guard Positions 1 | . . . . . . . . . . 1 . Active Terminals 1 | . . . . . . . . . . 1 . Exploration | -11 -10 -9 -9 -8 -7 -7 -7 -7 -6 -6 -6 ------------- Run | Jun Mat Mat Min Mat Fac Low Low Zio Pro Fac Low Turns Passed 13340 | 63 966 1079 207 556 588 2191 2055 1827 835 2046 927 Spaces Moved 5733 | 38 521 378 93 216 236 858 825 758 334 1071 405 Core 4 | 4 . . . . . . . . . . . Treads 4253 | 34 521 378 93 216 236 858 825 758 334 . . Legs 1476 | . . . . . . . . . . 1071 405 Wheels . | . . . . . . . . . . . . Hover . | . . . . . . . . . . . . Flight . | . . . . . . . . . . . . Fastest Speed 50 | 50 160 225 225 228 228 232 230 238 238 120 190 Average Speed 209 | 148 160 226 225 228 228 233 234 238 240 159 190 Slowest Speed 260 | 160 160 240 225 228 232 240 238 238 241 191 260 Overloaded Moves . | . . . . . . . . . . . . Propulsion Burnouts . | . . . . . . . . . . . . Robots Hopped 3 | . . . . . . . 3 . . . . Cave-ins Triggered . | . . . . . . . . . . . . Exploration Rate (%) 48 | 3 81 37 42 29 6 81 79 85 59 31 54 Regions Visited 11 Branch Regions 6 Pre-discovered Areas 2 | . . . . . . 1 . 1 . . . Known Exits Taken 6 | . . . . . 1 1 1 1 1 1 . Unknown Exits Taken 5 | 1 1 1 1 1 . . . . . . . Scrap Searched 12 | . . . . . . 3 5 3 1 . . Spaces Dug 39 | . . . . . 3 4 16 . . 16 . Terrain Destroyed 156 | . . . . . 3 53 63 . 21 16 . Melee 23 | . . . . . 3 4 . . . 16 . Projectile . | . . . . . . . . . . . . AOE 133 | . . . . . . 49 63 . 21 . . Terrain Rammed . | . . . . . . . . . . . . Walls Destroyed . | . . . . . . . . . . . . Machines Disabled . | . . . . . . . . . . . . Actions | -11 -10 -9 -9 -8 -7 -7 -7 -7 -6 -6 -6 --------- Run | Jun Mat Mat Min Mat Fac Low Low Zio Pro Fac Low Total 6516 | 42 600 501 92 249 271 967 905 778 352 1281 478 Wait 125 | . 6 10 . 4 11 17 6 13 1 48 9 Move 5716 | 37 520 377 92 215 235 857 818 757 333 1070 405 Hop 3 | . . . . . . . 3 . . . . Pick Up 113 | . 14 29 . 4 3 12 22 2 1 26 . Fast Attach 33 | 5 6 3 . 2 2 3 1 . 1 9 1 Attach 68 | . 1 12 . 2 3 12 8 . 1 18 11 Detach 4 | . . 1 . . . 1 . . . . 2 Swap 40 | . 2 2 . 1 4 10 4 . 2 9 6 Drop 65 | . 7 5 . 4 5 8 10 2 2 22 . Fire 143 | . 42 55 . 17 5 11 8 . 2 . 3 Melee 196 | . . . . . 3 36 25 4 8 79 41 Ram . | . . . . . . . . . . . . Kick . | . . . . . . . . . . . . Crush 9 | . 2 7 . . . . . . . . . Escape Stasis . | . . . . . . . . . . . . Rewire 1 | . . . . . . . . . 1 . . Trap . | . . . . . . . . . . . . Miscellaneous . | . . . . . . . . . . . . Route ------- -11/Junkyard -10/Materials (discovered 4 exits: *Mat x3 / [*Min]) -9/Materials (discovered 2 exits: [*Min x2]) -9/Mines -8/Materials -7/Factory (discovered 2 exits: *Fac / *Low) -7/Lower Caves -7/Lower Caves (discovered 2 exits: *Fac / *Zio) -7/Zion -6/Proximity Caves -6/Factory (discovered 4 exits: *Fac x2 / *Low x2) -6/Lower Caves (discovered 1 exit: *Dat) History --------- Turn | Location | Event 2 | -11/Junkyard | Discovered new exit (range 16) 64 | -11/Junkyard | Entered Materials 155 | -10/Materials | Central database locked down 285 | -10/Materials | Discovered new exit (range 16) 300 | -10/Materials | Build established: Mutant 411 | -10/Materials | Discovered new exit (range 15) 704 | -10/Materials | Discovered new exit (range 5) 1019 | -10/Materials | Discovered new exit (range 6) 1030 | -10/Materials | Entered another Materials area 1030 | -9/Materials | Evolved 2 slots: Propulsion x1, Weapon x1 1300 | -9/Materials | Lost 4 parts (2n1u1w) 1443 | -9/Materials | Discovered new exit (range 6) 1620 | -9/Materials | Build established: Gunner 1940 | -9/Materials | Discovered new exit (range 9) 2109 | -9/Materials | Entered Mines 2271 | -9/Mines | Build established: Tank 2280 | -9/Mines | Discovered new exit (range 11) 2296 | -9/Mines | Received a Rocket Launcher from a helpful Derelict 2316 | -9/Mines | Entered Materials 2316 | -8/Materials | Evolved 2 slots: Propulsion x1, Utility x1 2704 | -8/Materials | Garrison activated, responded to threat 2788 | -8/Materials | Discovered new exit (range 16) 2872 | -8/Materials | Entered Factory 2872 | -7/Factory | Evolved 2 slots: Utility x2 2906 | -7/Factory | Discovered new exit (range 13) 3176 | -7/Factory | Identified exit to Factory 3412 | -7/Factory | Discovered new exit (range 15) 3458 | -7/Factory | Identified exit to Lower Caves 3460 | -7/Factory | Entered Lower Caves 3659 | -7/Lower Caves | Build established: Scavenger-Skirmisher 3752 | -7/Lower Caves | Attracted the attention of an 0b10 checkpoint 4075 | -7/Lower Caves | Build established: Mutant 4577 | -7/Lower Caves | Spotted B-75 Beast 4774 | -7/Lower Caves | Learned 4 Factory zone layouts 4865 | -7/Lower Caves | Lost 4 parts (1p3n) 4922 | -7/Lower Caves | Learned location of Zion (-7) 4929 | -7/Lower Caves | Lost 3 parts (1p2n) 5035 | -7/Lower Caves | Discovered new exit (range 3) 5040 | -7/Lower Caves | Identified exit to Lower Caves 5118 | -7/Lower Caves | Build established: Scavenger-Mutant 5143 | -7/Lower Caves | Attacked by a delusional Derelict stockpiling parts 5651 | -7/Lower Caves | Entered another Lower Caves area 5753 | -7/Lower Caves | Discovered exit to Factory (range 10) 5754 | -7/Lower Caves | Encountered a Warlord checkpoint 6672 | -7/Lower Caves | Build established: Mutant 6810 | -7/Lower Caves | Lost 4 parts (1p2u1w) 7255 | -7/Lower Caves | Discovered new exit (range 7) 7269 | -7/Lower Caves | Identified exit to Zion 7526 | -7/Lower Caves | Destroyed 4Y-4H2(g) 7706 | -7/Lower Caves | Entered Zion 7727 | -7/Zion | Build established: Scavenger-Mutant 7764 | -7/Zion | Received a hallucinogenic algorithm 7802 | -7/Zion | Discovered new exit (range 14) 8180 | -7/Zion | Gained Derelict followers 8302 | -7/Zion | Found CR-A16's Pointy Stick 8413 | -7/Zion | Learned 4 Factory zone layouts 8415 | -7/Zion | Given A8's code to call for help 8529 | -7/Zion | Imprinted 8532 | -7/Zion | Declared Zion's savior 9515 | -7/Zion | Identified exit to Proximity Caves 9533 | -7/Zion | Entered Proximity Caves 9533 | -6/Proximity Caves | Accompanied by 7 allies 9725 | -6/Proximity Caves | Attracted the attention of an 0b10 checkpoint 10368 | -6/Proximity Caves | Entered Factory 10368 | -6/Factory | Evolved 2 slots: Propulsion x2 10369 | -6/Factory | Identified exit to Factory 10369 | -6/Factory | Identified exit to Lower Caves 10673 | -6/Factory | Discovered exit to Factory (range 15) 10998 | -6/Factory | Garrison activated, responded to threat 11050 | -6/Factory | Lost 5 parts (1p3n1u) 11203 | -6/Factory | Lost 3 parts (1n1u1w) 11436 | -6/Factory | Retrieved Zion intel report: Active Terminals 11437 | -6/Factory | Zion Heavy squad teleported in 11485 | -6/Factory | Zion Light squad teleported in 11497 | -6/Factory | Found Prototype Protection 11531 | -6/Factory | Retrieved Zion intel report: Guard Positions 11692 | -6/Factory | Terminal network hard line cut 12377 | -6/Factory | Discovered exit to Lower Caves (range 15) 12414 | -6/Factory | Entered Lower Caves 12620 | -6/Lower Caves | Encountered a Warlord checkpoint 12778 | -6/Lower Caves | A Derelict revealed a hidden shortcut to meet someone special 12792 | -6/Lower Caves | Identified exit to Data Miner 12977 | -6/Lower Caves | Lost 5 parts (1p3n1w) 13207 | -6/Lower Caves | Build established: Mutant 13235 | -6/Lower Caves | Attracted the attention of an 0b10 outpost 13253 | -6/Lower Caves | System corruption reached 10% 13256 | -6/Lower Caves | Core integrity fell below 50% 13341 | -6/Lower Caves | Self-destructed Last Messages --------------- 13311_ Penetrated by Slug. 13313_ Carbon-fiber Leg fries itself beyond repair. 13313_ Y-64 Sentinel misfires. 13313_ Slug penetrates Wall. 13315_ Penetrated by Slug. 13315_ Chainsword destroyed. 13317_ Penetrated by Slug. 13320_ Acquired 10 matter. 13320_ Knocked back. 13321_ Penetrated by Slug. 13323_ Carbon-fiber Leg destroyed. 13324_ Knocked back. 13325_ :XSQRTCQ4S4EW/W7&9N>0LRU 4JGFPTAVWRO 13325_ Penetrated by Slug. 13325_ Machine disabled. 13331_ B-48 Gladiator destroyed. 13332_ Penetrated by Slug. 13336_ Slug penetrates Machine. 13338_ Penetrated by Slug. 13339_ Y-64 Sentinel destroyed. Map ----- +----------------------------------------------------+ | ?????#??#?#?## ???# #######? ?##??#? | | ?????????#####? ?## ### ### ##?##? ? ? | | ???????##?##?# ?### ### ## #??#??#?? ?? | | ????????#?#?## ## ##### ## ?##????????## | | ??????#?#??#?# #### ## ?? ##?#??? #?# | | ???????#?????# ### ### ## ??##?#? ??# # | | ??????#?##?##? ### ## #### ####????##? # | | ?????#??#?##????## ######??##?#?#?#? ?? | | ????##???##????### ##?#?##########????#? | | ????#?##????## ### ######### ###? ?#?# | | ??????#??#??##??## ###### | | ????#???###??? #?# #### | | ????????##???? ## ### =!##### | | ???????????#?#??# ##### %####? | | ???????#?#?#????# ###### ###### | | ??????#?###??#?## ######## ######### | | ?????????????# ?# ######## ########## # | | ????????#???## ?###?###### ##### ### ### | | ???????????#?# ###?## ### ### ####### | | ?????????????# #?## ## ####### | | ????????????## #### # ##### # | | ?????????????# ### ####### #### | | ????????????### # ""# ####? | | ?????????????## %$ ; # ###### | | ???????????### # g# ##### | | ??????????## # =*@ Y# ##### ### | | ????????????# *%%# "# ###### ### | | ?????????????# %%%%#""""# ###### ##### | | ??????????#?## ###%%####### #?#### ###### | | ????????#????## ?#?## ! ####### ##### | | ????????????## ??###?;#"### ######## ### | | ???????????????????#### #### ######### ## | | ????????????? ?? ?#???###### ######### ## | | ???????????#????????##?##?############?### | | ??????????????#? ?####?#??################ | | ???????????????#??##???#?#??############### # | | ?????????????????#?????##???##?################### | | ????????????????#?#?#?#???###??######?#########?## | | ??????????????????##????????###############?#?#### | | ???????????????#????#???#???#???#?##########?##?## | | ?????????????????#?????#???#????#?##?###?###?###?# | | ??????????????????????#?##??#??##???#########?#?#? | | ?????????????????#??#???#?#??#?#??###?############ | | ??????????????????????#??#?????????#?#??##??####?# | | ?????????????????????#??????????????#?#?###?#??### | | ??????????????????????????????#???????#?#??##?#?## | | ?????????????????????????????????????????#?######? | | ??????????????????????????????????????????#?#?#??? | | ????????????????????????????????????????????#????? | | ?????????????????????????????????????????#?###???? | +----------------------------------------------------+ Best States ------------- Heat Dissipation 37 Energy Generation 18 Energy Capacity 800 Matter Stores 300 Matter Capacity 300 Sight Range 22 Robot Scan Range 15 Terrain Scan Range 16 Terrain Scan Density 210 Armor Coverage 450 Resistance: TH 10 Propulsion Shielding 33 Utility Shielding 90 Evasion (%) 55 Targeting Accuracy 8 Melee Accuracy 8 Recoil Reduction 4 Item Schematics ----------------- None Robot Schematics ------------------ None Fabricated ------------ Nothing Alien Tech Used ----------------- None Achievements -------------- None Challenges ------------ None Game ------ Seed DynamicWarpSuperbattery Manual? 0 Play Time 00:48:38 Cumulative 279.0 hours Start 2023.02.20 @ 08:41:43 End 2023.02.21 @ 02:50:19 Sessions 7 Manual Loads 0 Difficulty Rogue Special Mode None Game No. 404 Rogue 382 Adventurer 4 Explorer 18 Win Type - Total 11 Types 9/0/0/2/0/0/0/0/0 Lore% 70 Gallery% 89 Achievement% 73 Wizard Run 0 Options --------- ASCII 0 Keyboard 1 Movement Numpad Keybinds 0 Fullscreen 1 Font 18/SmallcapsGlow Map View 76x50 Tactical HUD 1 Map Filters NONE Filters NONE Steam 1 RUN: 0d938a98-d9db-4179-b675-b6ce985cf09e